{"text_format":"1","workbook":"xlsx","n_sheets":19,"sheets":["Start","Dimen","omv","omv 1","omv 3","hyb","Hyb1","hyb1mod ","hyb1cub","Hyb1AIO","Hyb3","Hyb3mod","hyb3cub","Hyb3AIO","retro","retro1","retro1mod","retro1cub","retro1AIO"],"not_rendered":{"charts":0,"images":17,"macros":1,"external_links":0,"defined_names":0,"comments":0,"pivot_tables":0},"unopened":[],"bounds":{"document_bytes":16777216,"sheet_cells":100000,"rows_first":2000,"rows_last":500,"rows_between":2000,"halvings":0,"cell_chars":16384,"cell_head_chars":4096},"cells_cut":0,"cells_raw":0,"read":"whole","date_system":"1900"}

{"sheet":"Start","index":0,"n_rows":0,"n_cols":0,"rows_kept":0,"cut":false,"hidden":false,"merged":[]}

{"sheet":"Dimen","index":1,"n_rows":58,"n_cols":15,"rows_kept":58,"cut":false,"hidden":false,"merged":[[5,6,5,8],[0,10,0,14],[4,10,4,14]]}
[null,null,null,null,"Fox Ess",null,null,null,null,null,"Zonnepaneel"]
[null,null,null,null,"Gele velden invullen aub",null,null,null,null,null,"Watt peak:",375,"Wp"]
[null,null,null,null,"Dit is een indicatietool",null,null,null,null,null,"Vmmp:",21,"  max.  spanning"]
[null,null,null,null,"Steeds technische fiche raadplegen",null,null,null,null,null,"Vmpp = +/- 80% Voc (indien Vmpp niet gekend is)"]
[null,null,null,null,"[max120%]",null,null,null,null,null,"Aantal panelen"]
[null,"Omvormer",null,"Aantal Mpp","Max DC Input Power","Start up Voltage","Min/Max Input Vdc/Mpp",null,null,null,"Totaal","Min","Min\nMpp",null,"Max\nMpp"]
[]
[null,"S 700",null,1,1050,60,50,"-",500,null,{"$f":"INT(E8/L2)","v":2},{"$f":"F8/L3","v":2.8571428571428572},{"$f":"L8","v":2.8571428571428572},"-",{"$f":"K8/D8","v":2}]
[null,"S 1000",null,1,1500,60,50,"-",500,null,{"$f":"INT(E9/L2)","v":4},{"$f":"F9/L3","v":2.8571428571428572},{"$f":"L9","v":2.8571428571428572},"-",{"$f":"K9/D9","v":4}]
[null,"S 1500",null,1,2250,60,50,"-",500,null,{"$f":"INT(E10/L2)","v":6},{"$f":"F10/L3","v":2.8571428571428572},2.8571428571428572,"-",6]
[null,"S 2000",null,1,3000,60,50,"-",500,null,{"$f":"INT(E11/L2)","v":8},{"$f":"F11/L3","v":2.8571428571428572},2.8571428571428572,"-",8]
[null,"S 2500",null,1,3750,60,50,"-",500,null,{"$f":"INT(E12/L2)","v":10},{"$f":"F12/L3","v":2.8571428571428572},2.8571428571428572,"-",10]
[null,"S 3000",null,1,4500,60,50,"-",500,null,{"$f":"INT(E13/L2)","v":12},{"$f":"F13/L3","v":2.8571428571428572},2.8571428571428572,"-",12]
[null,"S 3300",null,1,4950,60,50,"-",500,null,{"$f":"INT(E14/L2)","v":13},{"$f":"F14/L3","v":2.8571428571428572},2.8571428571428572,"-",13]
[]
[]
[null,"Mono"]
[null,"F 3000",null,2,4500,120,80,"-",550,null,{"$f":"INT(E18/L2)","v":12},{"$f":"F18/L3","v":5.7142857142857144},{"$f":"L18","v":5.7142857142857144},"-",6]
[null,"F 3600",null,2,5400,120,80,"-",550,null,{"$f":"INT(E19/L2)","v":14},{"$f":"F19/L3","v":5.7142857142857144},{"$f":"L19","v":5.7142857142857144},"-",7]
[null,"F 4600",null,2,6900,120,80,"-",550,null,{"$f":"INT(E20/L2)","v":18},{"$f":"F20/L3","v":5.7142857142857144},5.7142857142857144,"-",9]
[null,"F 5000",null,2,7500,120,80,"-",550,null,{"$f":"INT(E21/L2)","v":20},{"$f":"F21/L3","v":5.7142857142857144},5.7142857142857144,"-",10]
[]
[null,"3-Fase"]
[null,"T 3-G3",null,2,4500,140,140,"-",850,null,{"$f":"INT(E24/L2)","v":12},{"$f":"F24/L3","v":6.666666666666667},{"$f":"G24/L3","v":6.666666666666667},"-",{"$f":"K24/D24","v":6}]
[null,"T 4-G3",null,2,6000,140,140,"-",850,null,{"$f":"INT(E25/L2)","v":16},{"$f":"F25/L3","v":6.666666666666667},{"$f":"G25/L3","v":6.666666666666667},"-",{"$f":"K25/D25","v":8}]
[null,"T 5-G3",null,2,7500,140,140,"-",850,null,{"$f":"INT(E26/L2)","v":20},{"$f":"F26/L3","v":6.666666666666667},{"$f":"G26/L3","v":6.666666666666667},"-",10]
[null,"T 6-G3",null,2,9000,140,140,"-",850,null,{"$f":"INT(E27/L2)","v":24},{"$f":"F27/L3","v":6.666666666666667},{"$f":"G27/L3","v":6.666666666666667},"-",12]
[null,"T 8-G3",null,2,12000,140,140,"-",850,null,{"$f":"INT(E28/L2)","v":32},{"$f":"F28/L3","v":6.666666666666667},{"$f":"G28/L3","v":6.666666666666667},"-",16]
[null,"T 11-G3",null,2,15000,140,140,"-",850,null,{"$f":"INT(E29/L2)","v":40},{"$f":"F29/L3","v":6.666666666666667},{"$f":"G29/L3","v":6.666666666666667},"-",20]
[null,"T 12-G3",null,2,18000,140,140,"-",850,null,{"$f":"INT(E30/L2)","v":48},{"$f":"F30/L3","v":6.666666666666667},{"$f":"G30/L3","v":6.666666666666667},"-",24]
[null,"T 15-G3",null,2,22500,140,140,"-",850,null,{"$f":"INT(E31/L2)","v":60},{"$f":"F31/L3","v":6.666666666666667},{"$f":"G31/L3","v":6.666666666666667},"-",30]
[null,"T 17-G3",null,2,25500,140,140,"-",850,null,{"$f":"INT(E32/L2)","v":68},{"$f":"F32/L3","v":6.666666666666667},{"$f":"G32/L3","v":6.666666666666667},"-",34]
[null,"T 20-G3",null,2,30000,140,140,"-",850,null,{"$f":"INT(E33/L2)","v":80},{"$f":"F33/L3","v":6.666666666666667},{"$f":"G33/L3","v":6.666666666666667},"-",40]
[null,"T 25-G3",null,2,37500,140,140,"-",850,null,{"$f":"INT(E34/L2)","v":100},{"$f":"F34/L3","v":6.666666666666667},{"$f":"G34/L3","v":6.666666666666667},"-",50]
[]
[null,"H1 Hybride Mono / S"]
[null,"H1 3,0-E",null,2,3900,80,80,"-",550,null,{"$f":"INT(E37/L2)","v":10},{"$f":"F37/L3","v":3.8095238095238093},{"$f":"G37/L3","v":3.8095238095238093},"-",5]
[null,"H1 3,7-E",null,2,4680,80,80,"-",550,null,{"$f":"INT(E38/L2)","v":12},{"$f":"F38/L3","v":3.8095238095238093},{"$f":"G38/L3","v":3.8095238095238093},"-",6]
[null,"H1 4,6-E",null,2,5980,80,80,"-",550,null,{"$f":"INT(E39/L2)","v":15},{"$f":"F39/L3","v":3.8095238095238093},{"$f":"G39/L3","v":3.8095238095238093},"-",7.5]
[null,"H1 5,0-E",null,2,6500,80,80,"-",550,null,{"$f":"INT(E40/L2)","v":17},{"$f":"F40/L3","v":3.8095238095238093},{"$f":"G40/L3","v":3.8095238095238093},"-",8.5]
[]
[null,"H3 Hybride 3-Fase / T"]
[null,"H3 5,0-E",null,2,7500,210,210,"-",800,null,{"$f":"INT(E43/L2)","v":20},{"$f":"F43/L3","v":10},{"$f":"G43/L3","v":10},"-",10]
[null,"H3 6,0-E",null,2,9000,250,250,"-",800,null,{"$f":"INT(E44/L2)","v":24},{"$f":"F44/L3","v":11.904761904761905},{"$f":"G44/L3","v":11.904761904761905},"-",12]
[null,"H3 8,0-E",null,2,10400,240,240,"-",800,null,{"$f":"INT(E45/L2)","v":27},{"$f":"F45/L3","v":11.428571428571429},{"$f":"G45/L3","v":11.428571428571429},"-",13.5]
[null,"H3 11,0-E",null,2,13000,280,280,"-",800,null,{"$f":"INT(E46/L2)","v":34},{"$f":"F46/L3","v":13.333333333333334},{"$f":"G46/L3","v":13.333333333333334},"-",17]
[null,"H3 12,0-E",null,2,15000,320,320,"-",800,null,{"$f":"INT(E47/L2)","v":40},{"$f":"F47/L3","v":15.238095238095237},{"$f":"G47/L3","v":15.238095238095237},"-",20]
[]
[null,"AIO-H1 All-in one Mono / S"]
[null,"AIO-H1-3.0",null,2,3900,80,80,"-",550,null,{"$f":"INT(E50/L2)","v":10},{"$f":"F50/L3","v":3.8095238095238093},{"$f":"G50/L3","v":3.8095238095238093},"-",5]
[null,"AIO-H1-3.7",null,2,4680,80,80,"-",550,null,{"$f":"INT(E51/L2)","v":12},{"$f":"F51/L3","v":3.8095238095238093},{"$f":"G51/L3","v":3.8095238095238093},"-",6]
[null,"AIO-H1-4.6-E",null,2,5980,80,80,"-",550,null,{"$f":"INT(E52/L2)","v":15},{"$f":"F52/L3","v":3.8095238095238093},{"$f":"G52/L3","v":3.8095238095238093},"-",7.5]
[null,"AIO-H1-5.0-E",null,2,6500,80,80,"-",550,null,{"$f":"INT(E53/L2)","v":17},{"$f":"F53/L3","v":3.8095238095238093},{"$f":"G53/L3","v":3.8095238095238093},"-",8.5]
[]
[null,"AIO-H3 All-in one 3-Fase / T"]
[null,"AIO-H3-5.0",null,2,6000,180,180,null,950,null,{"$f":"INT(E56/L2)","v":16},{"$f":"F56/L3","v":8.5714285714285712},{"$f":"G56/L3","v":8.5714285714285712},"-",8]
[null,"AIO-H3-6.0",null,2,8000,180,180,null,950,null,{"$f":"INT(E57/L2)","v":21},{"$f":"F57/L3","v":8.5714285714285712},{"$f":"G57/L3","v":8.5714285714285712},"-",10.5]
[null,"AIO-H3-8.0",null,2,10000,180,180,null,950,null,{"$f":"INT(E58/L2)","v":26},{"$f":"F58/L3","v":8.5714285714285712},{"$f":"G58/L3","v":8.5714285714285712},"-",13]

{"sheet":"omv","index":2,"n_rows":2,"n_cols":3,"rows_kept":2,"cut":false,"hidden":false,"merged":[]}
[]
[null,null,"Omvormer/"]

{"sheet":"omv 1","index":3,"n_rows":29,"n_cols":13,"rows_kept":29,"cut":false,"hidden":false,"merged":[]}
[]
[null,null,"Omvormer/mono fasig"]
[]
[]
[]
[]
[]
[]
[]
[]
[]
[]
[]
[]
[]
[null,null,"1 Tracker",null,"artikel nr",null,"Incl",null,"2 Trackers"]
[]
[null,null,"S700",null,"A0073056",null,null,null,"F3000-G2",null,"A0074927",null,"WIFI"]
[null,null,"S700",null,null,null,"WIFI",null,"F3600-G2",null,"A0074928",null,"WIFI"]
[null,null,"S1000",null,"A0073058",null,null,null,"F4600-G2",null,"A0075255",null,"WIFI"]
[null,null,"S1000",null,null,null,"WIFI",null,"F5000-G2",null,"A0075254",null,"WIFI"]
[null,null,"S1500",null,"A0073059"]
[null,null,"S1500",null,null,null,"WIFI"]
[null,null,"S2000",null,"A0073061"]
[null,null,"S2000",null,null,null,"WIFI"]
[null,null,"S2500",null,"A0072968"]
[null,null,"S2500",null,null,null,"WIFI"]
[null,null,"S3000",null,"A0072969"]
[null,null,"S3000",null,null,null,"WIFI"]

{"sheet":"omv 3","index":4,"n_rows":21,"n_cols":13,"rows_kept":21,"cut":false,"hidden":false,"merged":[]}
[]
[null,null,"Omvormer/drie fasig"]
[]
[]
[]
[]
[]
[]
[]
[]
[]
[]
[]
[]
[null,null,"< 10Kw",null,"artikel nr",null,"Incl",null,"> 10Kw"]
[null,null,"T3-G3",null,"A0073067",null,"WIFI",null,"T11-G3",null,"A0073072",null,"WIFI"]
[null,null,"T4-G3",null,"A0073068",null,"WIFI",null,"T12-G3",null,"A0073073",null,"WIFI"]
[null,null,"T5-G3",null,"A0073069",null,"WIFI",null,"T15-G3",null,"A0073074",null,"WIFI"]
[null,null,"T6-G3",null,"A0073070",null,"WIFI",null,"T17-G3",null,"A0073075",null,"WIFI"]
[null,null,"T8-G3",null,"A0073071",null,"WIFI",null,"T20-G3",null,"A0073076",null,"WIFI"]
[null,null,null,null,null,null,null,null,"T25-G3",null,"A0073077",null,"WIFI"]

{"sheet":"hyb","index":5,"n_rows":2,"n_cols":3,"rows_kept":2,"cut":false,"hidden":false,"merged":[]}
[]
[null,null,"Hybride omvormer/"]

{"sheet":"Hyb1","index":6,"n_rows":2,"n_cols":3,"rows_kept":2,"cut":false,"hidden":false,"merged":[]}
[]
[null,null,"Hybride omvormer/mono fase/"]

{"sheet":"hyb1mod ","index":7,"n_rows":72,"n_cols":20,"rows_kept":72,"cut":false,"hidden":false,"merged":[]}
[]
[null,null,"Hybride omvormer/mono-fase/module batterijen"]
[]
[null,null,null,null,null,null,null,null,null,null,null,"BMS BOX",null,null,"HV2600"]
[]
[]
[]
[]
[]
[]
[]
[null,null,"Omvormer",null,"Artikel",null,"Incl",null,"optie",null,"kWh","Batterij",null,"aantal","Artikel","aantal","Bracket set",null,"aantal","Extended DC Cable set"]
[null,null,null,null,null,null,null,null,null,null,null,null,null,null,null,null,null,null,null,"For second rack"]
[null,null,"H1-3.0-E",null,"A0073149",null,"CT meetklem",null,"LAN",null,5.2,"BMS BOX HV",null,1,"A0072821",null,"incl"]
[null,null,null,null,null,null,"WIFI",null,"A0070788",null,null,"2*HV2600",null,2,"A0070783",2,"A0072822"]
[null,null,null,null,null,null,null,null,null,null,7.8,"BMS BOX HV",null,1,"A0072821",null,"incl"]
[null,null,null,null,null,null,null,null,null,null,null,"3*HV2600",null,3,"A0070783",3,"A0072822"]
[null,null,null,null,null,null,null,null,null,null,10.4,"BMS BOX HV",null,1,"A0072821",null,"incl"]
[null,null,null,null,null,null,null,null,null,null,null,"4*HV2600",null,4,"A0070783",4,"A0072822"]
[null,null,null,null,null,null,null,null,null,null,13,"BMS BOX HV",null,1,"A0072821",null,"incl"]
[null,null,null,null,null,null,null,null,null,null,null,"5*HV2600",null,5,"A0070783",5,"A0072822",null,1,"A0074727"]
[null,null,null,null,null,null,null,null,null,null,15.6,"BMS BOX HV",null,1,"A0072821",null,"incl"]
[null,null,null,null,null,null,null,null,null,null,null,"6*HV2600",null,6,"A0070783",6,"A0072822",null,1,"A0074727"]
[null,null,null,null,null,null,null,null,null,null,18.2,"BMS BOX HV",null,1,"A0072821",null,"incl"]
[null,null,null,null,null,null,null,null,null,null,null,"7*HV2600",null,7,"A0070783",7,"A0072822",null,1,"A0074727"]
[null,null,null,null,null,null,null,null,null,null,20.8,"BMS BOX HV",null,1,"A0072821",null,"incl"]
[null,null,null,null,null,null,null,null,null,null,null,"8*HV2600",null,8,"A0070783",8,"A0072822",null,1,"A0074727"]
[]
[null,null,"H1-3.7-E",null,"A0073150",null,"CT meetklem",null,"LAN",null,5.2,"BMS BOX HV",null,1,"A0072821",null,"incl"]
[null,null,null,null,null,null,"WIFI",null,"A0070788",null,null,"2*HV2600",null,2,"A0070783",2,"A0072822"]
[null,null,null,null,null,null,null,null,null,null,7.8,"BMS BOX HV",null,1,"A0072821",null,"incl"]
[null,null,null,null,null,null,null,null,null,null,null,"3*HV2600",null,3,"A0070783",3,"A0072822"]
[null,null,null,null,null,null,null,null,null,null,10.4,"BMS BOX HV",null,1,"A0072821",null,"incl"]
[null,null,null,null,null,null,null,null,null,null,null,"4*HV2600",null,4,"A0070783",4,"A0072822"]
[null,null,null,null,null,null,null,null,null,null,13,"BMS BOX HV",null,1,"A0072821",null,"incl"]
[null,null,null,null,null,null,null,null,null,null,null,"5*HV2600",null,5,"A0070783",5,"A0072822",null,1,"A0074727"]
[null,null,null,null,null,null,null,null,null,null,15.6,"BMS BOX HV",null,1,"A0072821",null,"incl"]
[null,null,null,null,null,null,null,null,null,null,null,"6*HV2600",null,6,"A0070783",6,"A0072822",null,1,"A0074727"]
[null,null,null,null,null,null,null,null,null,null,18.2,"BMS BOX HV",null,1,"A0072821",null,"incl"]
[null,null,null,null,null,null,null,null,null,null,null,"7*HV2600",null,7,"A0070783",7,"A0072822",null,1,"A0074727"]
[null,null,null,null,null,null,null,null,null,null,20.8,"BMS BOX HV",null,1,"A0072821",null,"incl"]
[null,null,null,null,null,null,null,null,null,null,null,"8*HV2600",null,8,"A0070783",8,"A0072822",null,1,"A0074727"]
[]
[null,null,"H1-4.6-E1",null,"A0075258",null,"CT meetklem",null,"LAN",null,5.2,"BMS BOX HV",null,1,"A0072821",null,"incl"]
[null,null,null,null,null,null,"WIFI",null,"A0070788",null,null,"2*HV2600",null,2,"A0070783",2,"A0072822"]
[null,null,null,null,null,null,null,null,null,null,7.8,"BMS BOX HV",null,1,"A0072821",null,"incl"]
[null,null,null,null,null,null,null,null,null,null,null,"3*HV2600",null,3,"A0070783",3,"A0072822"]
[null,null,null,null,null,null,null,null,null,null,10.4,"BMS BOX HV",null,1,"A0072821",null,"incl"]
[null,null,null,null,null,null,null,null,null,null,null,"4*HV2600",null,4,"A0070783",4,"A0072822"]
[null,null,null,null,null,null,null,null,null,null,13,"BMS BOX HV",null,1,"A0072821",null,"incl"]
[null,null,null,null,null,null,null,null,null,null,null,"5*HV2600",null,5,"A0070783",5,"A0072822",null,1,"A0074727"]
[null,null,null,null,null,null,null,null,null,null,15.6,"BMS BOX HV",null,1,"A0072821",null,"incl"]
[null,null,null,null,null,null,null,null,null,null,null,"6*HV2600",null,6,"A0070783",6,"A0072822",null,1,"A0074727"]
[null,null,null,null,null,null,null,null,null,null,18.2,"BMS BOX HV",null,1,"A0072821",null,"incl"]
[null,null,null,null,null,null,null,null,null,null,null,"7*HV2600",null,7,"A0070783",7,"A0072822",null,1,"A0074727"]
[null,null,null,null,null,null,null,null,null,null,20.8,"BMS BOX HV",null,1,"A0072821",null,"incl"]
[null,null,null,null,null,null,null,null,null,null,null,"8*HV2600",null,8,"A0070783",8,"A0072822",null,1,"A0074727"]
[]
[null,null,"H1-5.0-E1",null,"A0075212",null,"CT meetklem",null,"LAN",null,5.2,"BMS BOX HV",null,1,"A0072821",null,"incl"]
[null,null,null,null,null,null,"WIFI",null,"A0070788",null,null,"2*HV2600",null,2,"A0070783",2,"A0072822"]
[null,null,null,null,null,null,null,null,null,null,7.8,"BMS BOX HV",null,1,"A0072821",null,"incl"]
[null,null,null,null,null,null,null,null,null,null,null,"3*HV2600",null,3,"A0070783",3,"A0072822"]
[null,null,null,null,null,null,null,null,null,null,10.4,"BMS BOX HV",null,1,"A0072821",null,"incl"]
[null,null,null,null,null,null,null,null,null,null,null,"4*HV2600",null,4,"A0070783",4,"A0072822"]
[null,null,null,null,null,null,null,null,null,null,13,"BMS BOX HV",null,1,"A0072821",null,"incl"]
[null,null,null,null,null,null,null,null,null,null,null,"5*HV2600",null,5,"A0070783",5,"A0072822",null,1,"A0074727"]
[null,null,null,null,null,null,null,null,null,null,15.6,"BMS BOX HV",null,1,"A0072821",null,"incl"]
[null,null,null,null,null,null,null,null,null,null,null,"6*HV2600",null,6,"A0070783",6,"A0072822",null,1,"A0074727"]
[null,null,null,null,null,null,null,null,null,null,18.2,"BMS BOX HV",null,1,"A0072821",null,"incl"]
[null,null,null,null,null,null,null,null,null,null,null,"7*HV2600",null,7,"A0070783",7,"A0072822",null,1,"A0074727"]
[null,null,null,null,null,null,null,null,null,null,20.8,"BMS BOX HV",null,1,"A0072821",null,"incl"]
[null,null,null,null,null,null,null,null,null,null,null,"8*HV2600",null,8,"A0070783",8,"A0072822",null,1,"A0074727"]

{"sheet":"hyb1cub","index":8,"n_rows":63,"n_cols":16,"rows_kept":63,"cut":false,"hidden":false,"merged":[]}
[]
[null,null,"Hybride omvormer/mono-fasig net/Cubes batterijen"]
[]
[]
[]
[]
[]
[]
[]
[]
[null,null,"Omvormer",null,"Artikel nr",null,"Incl",null,"optie",null,"kWh","Batterij",null,"aantal",null,"Artikel"]
[]
[null,null,"H1-3.0-E",null,"A0073149",null,"CT meetklem",null,"LAN",null,8,"CM4100",null,1,null,"A0072823"]
[null,null,null,null,null,null,"WIFI",null,"A0070788",null,null,"1*CS4100",null,1,null,"A0072824"]
[null,null,null,null,null,null,null,null,null,null,12,"CM4100",null,1,null,"A0072823"]
[null,null,null,null,null,null,null,null,null,null,null,"2*CS4100",null,2,null,"A0072824"]
[null,null,null,null,null,null,null,null,null,null,16,"CM4100",null,1,null,"A0072823"]
[null,null,null,null,null,null,null,null,null,null,null,"3*CS4100",null,3,null,"A0072824"]
[null,null,null,null,null,null,null,null,null,null,20,"CM4100",null,1,null,"A0072823"]
[null,null,null,null,null,null,null,null,null,null,null,"4*CS4100",null,4,null,"A0072824"]
[null,null,null,null,null,null,null,null,null,null,24,"CM4100",null,1,null,"A0072823"]
[null,null,null,null,null,null,null,null,null,null,null,"5*CS4100",null,5,null,"A0072824"]
[null,null,null,null,null,null,null,null,null,null,28,"CM4100",null,1,null,"A0072823"]
[null,null,null,null,null,null,null,null,null,null,null,"6*CS4100",null,6,null,"A0072824"]
[]
[null,null,"H1-3.7-E",null,"A0073150",null,"CT meetklem",null,"LAN",null,8,"CM4100",null,1,null,"A0072823"]
[null,null,null,null,null,null,"WIFI",null,"A0070788",null,null,"1*CS4100",null,1,null,"A0072824"]
[null,null,null,null,null,null,null,null,null,null,12,"CM4100",null,1,null,"A0072823"]
[null,null,null,null,null,null,null,null,null,null,null,"2*CS4100",null,2,null,"A0072824"]
[null,null,null,null,null,null,null,null,null,null,16,"CM4100",null,1,null,"A0072823"]
[null,null,null,null,null,null,null,null,null,null,null,"3*CS4100",null,3,null,"A0072824"]
[null,null,null,null,null,null,null,null,null,null,20,"CM4100",null,1,null,"A0072823"]
[null,null,null,null,null,null,null,null,null,null,null,"4*CS4100",null,4,null,"A0072824"]
[null,null,null,null,null,null,null,null,null,null,24,"CM4100",null,1,null,"A0072823"]
[null,null,null,null,null,null,null,null,null,null,null,"5*CS4100",null,5,null,"A0072824"]
[null,null,null,null,null,null,null,null,null,null,28,"CM4100",null,1,null,"A0072823"]
[null,null,null,null,null,null,null,null,null,null,null,"6*CS4100",null,6,null,"A0072824"]
[]
[null,null,"H1-4.6-E1",null,"A0075258",null,"CT meetklem",null,"LAN",null,8,"CM4100",null,1,null,"A0072823"]
[null,null,null,null,null,null,"WIFI",null,"A0070788",null,null,"1*CS4100",null,1,null,"A0072824"]
[null,null,null,null,null,null,null,null,null,null,12,"CM4100",null,1,null,"A0072823"]
[null,null,null,null,null,null,null,null,null,null,null,"2*CS4100",null,2,null,"A0072824"]
[null,null,null,null,null,null,null,null,null,null,16,"CM4100",null,1,null,"A0072823"]
[null,null,null,null,null,null,null,null,null,null,null,"3*CS4100",null,3,null,"A0072824"]
[null,null,null,null,null,null,null,null,null,null,20,"CM4100",null,1,null,"A0072823"]
[null,null,null,null,null,null,null,null,null,null,null,"4*CS4100",null,4,null,"A0072824"]
[null,null,null,null,null,null,null,null,null,null,24,"CM4100",null,1,null,"A0072823"]
[null,null,null,null,null,null,null,null,null,null,null,"5*CS4100",null,5,null,"A0072824"]
[null,null,null,null,null,null,null,null,null,null,28,"CM4100",null,1,null,"A0072823"]
[null,null,null,null,null,null,null,null,null,null,null,"6*CS4100",null,6,null,"A0072824"]
[]
[null,null,"H1-5.0-E1",null,"A0075212",null,"CT meetklem",null,"LAN",null,8,"CM4100",null,1,null,"A0072823"]
[null,null,null,null,null,null,"WIFI",null,"A0070788",null,null,"1*CS4100",null,1,null,"A0072824"]
[null,null,null,null,null,null,null,null,null,null,12,"CM4100",null,1,null,"A0072823"]
[null,null,null,null,null,null,null,null,null,null,null,"2*CS4100",null,2,null,"A0072824"]
[null,null,null,null,null,null,null,null,null,null,16,"CM4100",null,1,null,"A0072823"]
[null,null,null,null,null,null,null,null,null,null,null,"3*CS4100",null,3,null,"A0072824"]
[null,null,null,null,null,null,null,null,null,null,20,"CM4100",null,1,null,"A0072823"]
[null,null,null,null,null,null,null,null,null,null,null,"4*CS4100",null,4,null,"A0072824"]
[null,null,null,null,null,null,null,null,null,null,24,"CM4100",null,1,null,"A0072823"]
[null,null,null,null,null,null,null,null,null,null,null,"5*CS4100",null,5,null,"A0072824"]
[null,null,null,null,null,null,null,null,null,null,28,"CM4100",null,1,null,"A0072823"]
[null,null,null,null,null,null,null,null,null,null,null,"6*CS4100",null,6,null,"A0072824"]

{"sheet":"Hyb1AIO","index":9,"n_rows":35,"n_cols":15,"rows_kept":35,"cut":false,"hidden":false,"merged":[]}
[]
[null,null,"Hybride omvormer/mono-fase/batterijen "]
[]
[]
[]
[]
[]
[]
[]
[]
[]
[]
[]
[]
[]
[]
[]
[]
[null,null,"all-in One",null,"artikel nr",null,"Incl",null,"optie",null,"kWh","Batterijen",null,"Aantal","Artikel"]
[]
[null,null,"AIO-H1-3.0",null,"A0073032",null,"WIFI 2.0",null,"LAN",null,5.2,"2*HV2600",null,2,"A0070783"]
[null,null,null,null,null,null,"CT meetklem",null,"A0070788",null,7.8,"3*HV2600",null,3,"A0070783"]
[null,null,null,null,null,null,null,null,null,null,10.4,"4*HV2600",null,4,"A0070783"]
[]
[null,null,"AIO-H1-3.7",null,"A0073033",null,"WIFI 2.0",null,"LAN",null,5.2,"2*HV2600",null,2,"A0070783"]
[null,null,null,null,null,null,"CT meetklem",null,"A0070788",null,7.8,"3*HV2600",null,3,"A0070783"]
[null,null,null,null,null,null,null,null,null,null,10.4,"4*HV2600",null,4,"A0070783"]
[]
[null,null,"AIO-H1-4.6E",null,"A0073034",null,"WIFI 2.0",null,"LAN",null,5.2,"2*HV2600",null,2,"A0070783"]
[null,null,null,null,null,null,"CT meetklem",null,"A0070788",null,7.8,"3*HV2600",null,3,"A0070783"]
[null,null,null,null,null,null,null,null,null,null,10.4,"4*HV2600",null,4,"A0070783"]
[]
[null,null,"AIO-H1-5.0E",null,"A0073035",null,"WIFI 2.0",null,"LAN",null,5.2,"2*HV2600",null,2,"A0070783"]
[null,null,null,null,null,null,"CT meetklem",null,"A0070788",null,7.8,"3*HV2600",null,3,"A0070783"]
[null,null,null,null,null,null,null,null,null,null,10.4,"4*HV2600",null,4,"A0070783"]

{"sheet":"Hyb3","index":10,"n_rows":2,"n_cols":3,"rows_kept":2,"cut":false,"hidden":false,"merged":[]}
[]
[null,null,"Hybride omvormer/drie fase/"]

{"sheet":"Hyb3mod","index":11,"n_rows":66,"n_cols":21,"rows_kept":66,"cut":false,"hidden":false,"merged":[]}
[]
[null,null,"Hybride omvormer/drie-fase/module batterijen"]
[]
[null,null,null,null,null,null,null,null,null,null,null,"BMS BOX",null,null,"HV2600"]
[]
[]
[]
[]
[]
[]
[null,null,"Omvormer",null,"Artikel nr",null,"Incl",null,"optie",null,"kWh","Batterij","kWh","aantal",null,"artikel","aantal","Bracket set",null,"aantal","Extended DC Cable set"]
[null,null,null,null,null,null,null,null,null,null,null,null,null,null,null,null,null,null,null,null,"For second stack"]
[null,null,"H3-5.0-E",null,"A0073153",null,"Inline meter RS485",null,"LAN",null,10.4,"BMS BOX HV",null,1,null,"A0072821",null,"incl"]
[null,null,null,null,null,null,"WIFI",null,"A0070788",null,null,"4*HV2600",10.4,4,null,"A0070783",4,"A0072822"]
[null,null,null,null,null,null,null,null,null,null,13,"BMS BOX HV",null,1,null,"A0072821",null,"incl"]
[null,null,null,null,null,null,null,null,null,null,null,"5*HV2600",13,5,null,"A0070783",5,"A0072822",null,1,"A0074727"]
[null,null,null,null,null,null,null,null,null,null,15.6,"BMS BOX HV",null,1,null,"A0072821",null,"incl"]
[null,null,null,null,null,null,null,null,null,null,null,"6*HV2600",15.6,6,null,"A0070783",6,"A0072822",null,1,"A0074727"]
[null,null,null,null,null,null,null,null,null,null,18.2,"BMS BOX HV",null,1,null,"A0072821",null,"incl"]
[null,null,null,null,null,null,null,null,null,null,null,"7*HV2600",18.2,7,null,"A0070783",7,"A0072822",null,1,"A0074727"]
[null,null,null,null,null,null,null,null,null,null,20.8,"BMS BOX HV",null,1,null,"A0072821",null,"incl"]
[null,null,null,null,null,null,null,null,null,null,null,"8*HV2600",20.8,8,null,"A0070783",8,"A0072822",null,1,"A0074727"]
[]
[null,null,"H3-6.0-E",null,"A0073155",null,"Inline meter RS485",null,"LAN",null,10.4,"BMS BOX HV",null,1,null,"A0072821",null,"incl"]
[null,null,null,null,null,null,"WIFI",null,"A0070788",null,null,"4*HV2600",10.4,4,null,"A0070783",4,"A0072822"]
[null,null,null,null,null,null,null,null,null,null,13,"BMS BOX HV",null,1,null,"A0072821",null,"incl"]
[null,null,null,null,null,null,null,null,null,null,null,"5*HV2600",13,5,null,"A0070783",5,"A0072822",null,1,"A0074727"]
[null,null,null,null,null,null,null,null,null,null,15.6,"BMS BOX HV",null,1,null,"A0072821",null,"incl"]
[null,null,null,null,null,null,null,null,null,null,null,"6*HV2600",15.6,6,null,"A0070783",6,"A0072822",null,1,"A0074727"]
[null,null,null,null,null,null,null,null,null,null,18.2,"BMS BOX HV",null,1,null,"A0072821",null,"incl"]
[null,null,null,null,null,null,null,null,null,null,null,"7*HV2600",18.2,7,null,"A0070783",7,"A0072822",null,1,"A0074727"]
[null,null,null,null,null,null,null,null,null,null,20.8,"BMS BOX HV",null,1,null,"A0072821",null,"incl"]
[null,null,null,null,null,null,null,null,null,null,null,"8*HV2600",20.8,8,null,"A0070783",8,"A0072822",null,1,"A0074727"]
[]
[null,null,"H3-8.0-E",null,"A0073156",null,"Inline meter RS485",null,"LAN",null,10.4,"BMS BOX HV",null,1,null,"A0072821",null,"incl"]
[null,null,null,null,null,null,"WIFI",null,"A0070788",null,null,"4*HV2600",10.4,4,null,"A0070783",4,"A0072822"]
[null,null,null,null,null,null,null,null,null,null,13,"BMS BOX HV",null,1,null,"A0072821",null,"incl"]
[null,null,null,null,null,null,null,null,null,null,null,"5*HV2600",13,5,null,"A0070783",5,"A0072822",null,1,"A0074727"]
[null,null,null,null,null,null,null,null,null,null,15.6,"BMS BOX HV",null,1,null,"A0072821",null,"incl"]
[null,null,null,null,null,null,null,null,null,null,null,"6*HV2600",15.6,6,null,"A0070783",6,"A0072822",null,1,"A0074727"]
[null,null,null,null,null,null,null,null,null,null,18.2,"BMS BOX HV",null,1,null,"A0072821",null,"incl"]
[null,null,null,null,null,null,null,null,null,null,null,"7*HV2600",18.2,7,null,"A0070783",7,"A0072822",null,1,"A0074727"]
[null,null,null,null,null,null,null,null,null,null,20.8,"BMS BOX HV",null,1,null,"A0072821",null,"incl"]
[null,null,null,null,null,null,null,null,null,null,null,"8*HV2600",20.8,8,null,"A0070783",8,"A0072822",null,1,"A0074727"]
[]
[null,">10kW","H3-11.0-E",null,"A0072967",null,"Inline meter RS485",null,"LAN",null,10.4,"BMS BOX HV",null,1,null,"A0072821",null,"incl"]
[null,null,null,null,null,null,"WIFI",null,"A0070788",null,null,"4*HV2600",10.4,4,null,"A0070783",4,"A0072822"]
[null,null,null,null,null,null,null,null,null,null,13,"BMS BOX HV",null,1,null,"A0072821",null,"incl"]
[null,null,null,null,null,null,null,null,null,null,null,"5*HV2600",13,5,null,"A0070783",5,"A0072822",null,1,"A0074727"]
[null,null,null,null,null,null,null,null,null,null,15.6,"BMS BOX HV",null,1,null,"A0072821",null,"incl"]
[null,null,null,null,null,null,null,null,null,null,null,"6*HV2600",15.6,6,null,"A0070783",6,"A0072822",null,1,"A0074727"]
[null,null,null,null,null,null,null,null,null,null,18.2,"BMS BOX HV",null,1,null,"A0072821",null,"incl"]
[null,null,null,null,null,null,null,null,null,null,null,"7*HV2600",18.2,7,null,"A0070783",7,"A0072822",null,1,"A0074727"]
[null,null,null,null,null,null,null,null,null,null,20.8,"BMS BOX HV",null,1,null,"A0072821",null,"incl"]
[null,null,null,null,null,null,null,null,null,null,null,"8*HV2600",20.8,8,null,"A0070783",8,"A0072822",null,1,"A0074727"]
[]
[null,null,"H3-12.0-E",null,"A0073157",null,"Inline meter RS485",null,"LAN",null,10.4,"BMS BOX HV",null,1,null,"A0072821",null,"incl"]
[null,null,null,null,null,null,"WIFI",null,"A0070788",null,null,"4*HV2600",10.4,4,null,"A0070783",4,"A0072822"]
[null,null,null,null,null,null,null,null,null,null,13,"BMS BOX HV",null,1,null,"A0072821",null,"incl"]
[null,null,null,null,null,null,null,null,null,null,null,"5*HV2600",13,5,null,"A0070783",5,"A0072822",null,1,"A0074727"]
[null,null,null,null,null,null,null,null,null,null,15.6,"BMS BOX HV",null,1,null,"A0072821",null,"incl"]
[null,null,null,null,null,null,null,null,null,null,null,"6*HV2600",15.6,6,null,"A0070783",6,"A0072822",null,1,"A0074727"]
[null,null,null,null,null,null,null,null,null,null,18.2,"BMS BOX HV",null,1,null,"A0072821",null,"incl"]
[null,null,null,null,null,null,null,null,null,null,null,"7*HV2600",18.2,7,null,"A0070783",7,"A0072822",null,1,"A0074727"]
[null,null,null,null,null,null,null,null,null,null,20.8,"BMS BOX HV",null,1,null,"A0072821",null,"incl"]
[null,null,null,null,null,null,null,null,null,null,null,"8*HV2600",20.8,8,null,"A0070783",8,"A0072822",null,1,"A0074727"]

{"sheet":"hyb3cub","index":12,"n_rows":66,"n_cols":16,"rows_kept":66,"cut":false,"hidden":false,"merged":[]}
[]
[null,null,"Hybride omvormer/drie-fase/Cubes batterijen"]
[]
[]
[]
[]
[]
[]
[]
[]
[null,null,"Omvormer",null,"Artikel nr",null,"Incl",null,"optie",null,"kWh","Batterij",null,"aantal",null,"Artikel nr"]
[]
[null,null,"H3-5.0-E",null,"A0073153",null,"Inline meter RS485",null,"LAN",null,12,"CM4100",null,1,null,"A0072823"]
[null,null,null,null,null,null,"WIFI",null,"A0070788",null,null,"2*CS4100",null,2,null,"A0072824"]
[null,null,null,null,null,null,null,null,null,null,16,"CM4100",null,1,null,"A0072823"]
[null,null,null,null,null,null,null,null,null,null,null,"3*CS4100",null,3,null,"A0072824"]
[null,null,null,null,null,null,null,null,null,null,20,"CM4100",null,1,null,"A0072823"]
[null,null,null,null,null,null,null,null,null,null,null,"4*CS4100",null,4,null,"A0072824"]
[null,null,null,null,null,null,null,null,null,null,24,"CM4100",null,1,null,"A0072823"]
[null,null,null,null,null,null,null,null,null,null,null,"5*CS4100",null,5,null,"A0072824"]
[null,null,null,null,null,null,null,null,null,null,28,"CM4100",null,1,null,"A0072823"]
[null,null,null,null,null,null,null,null,null,null,null,"6*CS4100",null,6,null,"A0072824"]
[]
[null,null,"H3-6.0-E",null,"A0073155",null,"Inline meter RS485",null,"LAN",null,12,"CM4100",null,1,null,"A0072823"]
[null,null,null,null,null,null,"WIFI",null,"A0070788",null,null,"2*CS4100",null,2,null,"A0072824"]
[null,null,null,null,null,null,null,null,null,null,16,"CM4100",null,1,null,"A0072823"]
[null,null,null,null,null,null,null,null,null,null,null,"3*CS4100",null,3,null,"A0072824"]
[null,null,null,null,null,null,null,null,null,null,20,"CM4100",null,1,null,"A0072823"]
[null,null,null,null,null,null,null,null,null,null,null,"4*CS4100",null,4,null,"A0072824"]
[null,null,null,null,null,null,null,null,null,null,24,"CM4100",null,1,null,"A0072823"]
[null,null,null,null,null,null,null,null,null,null,null,"5*CS4100",null,5,null,"A0072824"]
[null,null,null,null,null,null,null,null,null,null,28,"CM4100",null,1,null,"A0072823"]
[null,null,null,null,null,null,null,null,null,null,null,"6*CS4100",null,6,null,"A0072824"]
[]
[null,null,"H3-8.0-E",null,"A0073156",null,"Inline meter RS485",null,"LAN",null,12,"CM4100",null,1,null,"A0072823"]
[null,null,null,null,null,null,"WIFI",null,"A0070788",null,null,"2*CS4100",null,2,null,"A0072824"]
[null,null,null,null,null,null,null,null,null,null,16,"CM4100",null,1,null,"A0072823"]
[null,null,null,null,null,null,null,null,null,null,null,"3*CS4100",null,3,null,"A0072824"]
[null,null,null,null,null,null,null,null,null,null,20,"CM4100",null,1,null,"A0072823"]
[null,null,null,null,null,null,null,null,null,null,null,"4*CS4100",null,4,null,"A0072824"]
[null,null,null,null,null,null,null,null,null,null,24,"CM4100",null,1,null,"A0072823"]
[null,null,null,null,null,null,null,null,null,null,null,"5*CS4100",null,5,null,"A0072824"]
[null,null,null,null,null,null,null,null,null,null,28,"CM4100",null,1,null,"A0072823"]
[null,null,null,null,null,null,null,null,null,null,null,"6*CS4100",null,6,null,"A0072824"]
[]
[null,">10kW","H3-11.0-E",null,"A0072967",null,"Inline meter RS485",null,"LAN",null,12,"CM4100",null,1,null,"A0072823"]
[null,null,null,null,null,null,"WIFI",null,"A0070788",null,null,"2*CS4100",null,2,null,"A0072824"]
[null,null,null,null,null,null,null,null,null,null,16,"CM4100",null,1,null,"A0072823"]
[null,null,null,null,null,null,null,null,null,null,null,"3*CS4100",null,3,null,"A0072824"]
[null,null,null,null,null,null,null,null,null,null,20,"CM4100",null,1,null,"A0072823"]
[null,null,null,null,null,null,null,null,null,null,null,"4*CS4100",null,4,null,"A0072824"]
[null,null,null,null,null,null,null,null,null,null,24,"CM4100",null,1,null,"A0072823"]
[null,null,null,null,null,null,null,null,null,null,null,"5*CS4100",null,5,null,"A0072824"]
[null,null,null,null,null,null,null,null,null,null,28,"CM4100",null,1,null,"A0072823"]
[null,null,null,null,null,null,null,null,null,null,null,"6*CS4100",null,6,null,"A0072824"]
[]
[null,null,"H3-12.0-E",null,"A0073157",null,"Inline meter RS485",null,"LAN",null,12,"CM4100",null,1,null,"A0072823"]
[null,null,null,null,null,null,"WIFI",null,"A0070788",null,null,"2*CS4100",null,2,null,"A0072824"]
[null,null,null,null,null,null,null,null,null,null,16,"CM4100",null,1,null,"A0072823"]
[null,null,null,null,null,null,null,null,null,null,null,"3*CS4100",null,3,null,"A0072824"]
[null,null,null,null,null,null,null,null,null,null,20,"CM4100",null,1,null,"A0072823"]
[null,null,null,null,null,null,null,null,null,null,null,"4*CS4100",null,4,null,"A0072824"]
[null,null,null,null,null,null,null,null,null,null,24,"CM4100",null,1,null,"A0072823"]
[null,null,null,null,null,null,null,null,null,null,null,"5*CS4100",null,5,null,"A0072824"]
[null,null,null,null,null,null,null,null,null,null,28,"CM4100",null,1,null,"A0072823"]
[null,null,null,null,null,null,null,null,null,null,null,"6*CS4100",null,6,null,"A0072824"]

{"sheet":"Hyb3AIO","index":13,"n_rows":32,"n_cols":15,"rows_kept":32,"cut":false,"hidden":false,"merged":[]}
[]
[null,null,"Hybride omvormer/drie-fase/batterijen "]
[]
[]
[]
[]
[]
[]
[]
[]
[]
[]
[]
[]
[]
[]
[]
[]
[null,null,"all-in One",null,"Artikel nr",null,"Incl",null,"optie",null,"kWh","Batterijen",null,"aantal","Artikel"]
[]
[]
[null,null,"AIO-H3-5.0",null,"A0073036",null,"WIFI 3.0",null,"LAN",null,10.4,"4*HV2600",null,4,"A0070783"]
[null,null,null,null,null,null,"Inline meter RS485",null,"A0070788"]
[]
[null,null,"AIO-H3-6.0",null,"A0073037",null,"WIFI 3.0",null,"LAN",null,10.4,"4*HV2600",null,4,"A0070783"]
[null,null,null,null,null,null,"Inline meter RS485",null,"A0070788"]
[]
[null,null,"AIO-H3-8.0",null,"A0073038",null,"WIFI 3.0",null,"LAN",null,10.4,"4*HV2600",null,4,"A0070783"]
[null,null,null,null,null,null,"Inline meter RS485",null,"A0070788"]
[]
[null,">10kW","AIO-H3-11.0",null,"A0073039",null,"WIFI 3.0",null,"LAN",null,10.4,"4*HV2600",null,4,"A0070783"]
[null,null,null,null,null,null,"Inline meter RS485",null,"A0070788"]

{"sheet":"retro","index":14,"n_rows":2,"n_cols":3,"rows_kept":2,"cut":false,"hidden":false,"merged":[]}
[]
[null,null,"Retrofit batterij/"]

{"sheet":"retro1","index":15,"n_rows":2,"n_cols":3,"rows_kept":2,"cut":false,"hidden":false,"merged":[]}
[]
[null,null,"Retrofit batterij/mono fase/"]

{"sheet":"retro1mod","index":16,"n_rows":72,"n_cols":21,"rows_kept":72,"cut":false,"hidden":false,"merged":[]}
[]
[null,null,"Retrofit/mono-fase/module batterijen"]
[]
[null,null,null,null,null,null,null,null,null,null,null,"BMS BOX",null,null,"HV2600"]
[]
[]
[]
[]
[]
[]
[]
[null,null,"Omvormer",null,"Artikel nr",null,"Incl",null,"optie",null,"kWh","Batterij","kWh","aantal",null,"artikel","aantal","Bracket set",null,"aantal","Extended DC Cable set"]
[null,null,null,null,null,null,null,null,null,null,null,null,null,null,null,null,null,null,null,null,"For second stack"]
[null,null,"AC1-3.0-E",null,"A0073145",null,"CT meetklem",null,"LAN",null,5.2,"BMS BOX HV",null,1,null,"A0072821",null,"incl"]
[null,null,null,null,null,null,"WIFI",null,"A0070788",null,null,"2*HV2600",5.2,2,null,"A0070783",2,"A0072822"]
[null,null,null,null,null,null,null,null,null,null,7.8,"BMS BOX HV",null,1,null,"A0072821",null,"incl"]
[null,null,null,null,null,null,null,null,null,null,null,"3*HV2600",7.8,3,null,"A0070783",3,"A0072822"]
[null,null,null,null,null,null,null,null,null,null,10.4,"BMS BOX HV",null,1,null,"A0072821",null,"incl"]
[null,null,null,null,null,null,null,null,null,null,null,"4*HV2600",10.4,4,null,"A0070783",4,"A0072822"]
[null,null,null,null,null,null,null,null,null,null,13,"BMS BOX HV",null,1,null,"A0072821",null,"incl"]
[null,null,null,null,null,null,null,null,null,null,null,"5*HV2600",13,5,null,"A0070783",5,"A0072822",null,1,"A0074727"]
[null,null,null,null,null,null,null,null,null,null,15.6,"BMS BOX HV",null,1,null,"A0072821",null,"incl"]
[null,null,null,null,null,null,null,null,null,null,null,"6*HV2600",15.6,6,null,"A0070783",6,"A0072822",null,1,"A0074727"]
[null,null,null,null,null,null,null,null,null,null,18.2,"BMS BOX HV",null,1,null,"A0072821",null,"incl"]
[null,null,null,null,null,null,null,null,null,null,null,"7*HV2600",18.2,7,null,"A0070783",7,"A0072822",null,1,"A0074727"]
[null,null,null,null,null,null,null,null,null,null,20.8,"BMS BOX HV",null,1,null,"A0072821",null,"incl"]
[null,null,null,null,null,null,null,null,null,null,null,"8*HV2600",20.8,8,null,"A0070783",8,"A0072822",null,1,"A0074727"]
[]
[null,null,"AC1-3.7-E",null,"A0073146",null,"CT meetklem",null,"LAN",null,5.2,"BMS BOX HV",null,1,null,"A0072821",null,"incl"]
[null,null,null,null,null,null,"WIFI",null,"A0070788",null,null,"2*HV2600",5.2,2,null,"A0070783",2,"A0072822"]
[null,null,null,null,null,null,null,null,null,null,7.8,"BMS BOX HV",null,1,null,"A0072821",null,"incl"]
[null,null,null,null,null,null,null,null,null,null,null,"3*HV2600",7.8,3,null,"A0070783",3,"A0072822"]
[null,null,null,null,null,null,null,null,null,null,10.4,"BMS BOX HV",null,1,null,"A0072821",null,"incl"]
[null,null,null,null,null,null,null,null,null,null,null,"4*HV2600",10.4,4,null,"A0070783",4,"A0072822"]
[null,null,null,null,null,null,null,null,null,null,13,"BMS BOX HV",null,1,null,"A0072821",null,"incl"]
[null,null,null,null,null,null,null,null,null,null,null,"5*HV2600",13,5,null,"A0070783",5,"A0072822",null,1,"A0074727"]
[null,null,null,null,null,null,null,null,null,null,15.6,"BMS BOX HV",null,1,null,"A0072821",null,"incl"]
[null,null,null,null,null,null,null,null,null,null,null,"6*HV2600",15.6,6,null,"A0070783",6,"A0072822",null,1,"A0074727"]
[null,null,null,null,null,null,null,null,null,null,18.2,"BMS BOX HV",null,1,null,"A0072821",null,"incl"]
[null,null,null,null,null,null,null,null,null,null,null,"7*HV2600",18.2,7,null,"A0070783",7,"A0072822",null,1,"A0074727"]
[null,null,null,null,null,null,null,null,null,null,20.8,"BMS BOX HV",null,1,null,"A0072821",null,"incl"]
[null,null,null,null,null,null,null,null,null,null,null,"8*HV2600",20.8,8,null,"A0070783",8,"A0072822",null,1,"A0074727"]
[]
[null,null,"AC1-4.6-E1",null,"A0075256",null,"CT meetklem",null,"LAN",null,5.2,"BMS BOX HV",null,1,null,"A0072821",null,"incl"]
[null,null,null,null,null,null,"WIFI",null,"A0070788",null,null,"2*HV2600",5.2,2,null,"A0070783",2,"A0072822"]
[null,null,null,null,null,null,null,null,null,null,7.8,"BMS BOX HV",null,1,null,"A0072821",null,"incl"]
[null,null,null,null,null,null,null,null,null,null,null,"3*HV2600",7.8,3,null,"A0070783",3,"A0072822"]
[null,null,null,null,null,null,null,null,null,null,10.4,"BMS BOX HV",null,1,null,"A0072821",null,"incl"]
[null,null,null,null,null,null,null,null,null,null,null,"4*HV2600",10.4,4,null,"A0070783",4,"A0072822"]
[null,null,null,null,null,null,null,null,null,null,13,"BMS BOX HV",null,1,null,"A0072821",null,"incl"]
[null,null,null,null,null,null,null,null,null,null,null,"5*HV2600",13,5,null,"A0070783",5,"A0072822",null,1,"A0074727"]
[null,null,null,null,null,null,null,null,null,null,15.6,"BMS BOX HV",null,1,null,"A0072821",null,"incl"]
[null,null,null,null,null,null,null,null,null,null,null,"6*HV2600",15.6,6,null,"A0070783",6,"A0072822",null,1,"A0074727"]
[null,null,null,null,null,null,null,null,null,null,18.2,"BMS BOX HV",null,1,null,"A0072821",null,"incl"]
[null,null,null,null,null,null,null,null,null,null,null,"7*HV2600",18.2,7,null,"A0070783",7,"A0072822",null,1,"A0074727"]
[null,null,null,null,null,null,null,null,null,null,20.8,"BMS BOX HV",null,1,null,"A0072821",null,"incl"]
[null,null,null,null,null,null,null,null,null,null,null,"8*HV2600",20.8,8,null,"A0070783",8,"A0072822",null,1,"A0074727"]
[]
[null,null,"AC1-5.0-E1",null,"A0075257",null,"CT meetklem",null,"LAN",null,5.2,"BMS BOX HV",null,1,null,"A0072821",null,"incl"]
[null,null,null,null,null,null,"WIFI",null,"A0070788",null,null,"2*HV2600",5.2,2,null,"A0070783",2,"A0072822"]
[null,null,null,null,null,null,null,null,null,null,7.8,"BMS BOX HV",null,1,null,"A0072821",null,"incl"]
[null,null,null,null,null,null,null,null,null,null,null,"3*HV2600",7.8,3,null,"A0070783",3,"A0072822"]
[null,null,null,null,null,null,null,null,null,null,10.4,"BMS BOX HV",null,1,null,"A0072821",null,"incl"]
[null,null,null,null,null,null,null,null,null,null,null,"4*HV2600",10.4,4,null,"A0070783",4,"A0072822"]
[null,null,null,null,null,null,null,null,null,null,13,"BMS BOX HV",null,1,null,"A0072821",null,"incl"]
[null,null,null,null,null,null,null,null,null,null,null,"5*HV2600",13,5,null,"A0070783",5,"A0072822",null,1,"A0074727"]
[null,null,null,null,null,null,null,null,null,null,15.6,"BMS BOX HV",null,1,null,"A0072821",null,"incl"]
[null,null,null,null,null,null,null,null,null,null,null,"6*HV2600",15.6,6,null,"A0070783",6,"A0072822",null,1,"A0074727"]
[null,null,null,null,null,null,null,null,null,null,18.2,"BMS BOX HV",null,1,null,"A0072821",null,"incl"]
[null,null,null,null,null,null,null,null,null,null,null,"7*HV2600",18.2,7,null,"A0070783",7,"A0072822",null,1,"A0074727"]
[null,null,null,null,null,null,null,null,null,null,20.8,"BMS BOX HV",null,1,null,"A0072821",null,"incl"]
[null,null,null,null,null,null,null,null,null,null,null,"8*HV2600",20.8,8,null,"A0070783",8,"A0072822",null,1,"A0074727"]

{"sheet":"retro1cub","index":17,"n_rows":63,"n_cols":16,"rows_kept":63,"cut":false,"hidden":false,"merged":[]}
[]
[null,null,"Retro omvormer/mono-fase/Cubes batterijen"]
[]
[]
[]
[]
[]
[]
[]
[]
[null,null,"Omvormer",null,"Artikel nr",null,"Incl",null,"optie",null,"kWh","Batterij",null,"aantal",null,"Artikel nr"]
[]
[null,null,"AC1-3.0-E",null,"A0073145",null,"CT meetklem",null,"LAN",null,8,"CM4100",null,1,null,"A0072823"]
[null,null,null,null,null,null,"WIFI",null,"A0070788",null,null,"1*CS4100",null,1,null,"A0072824"]
[null,null,null,null,null,null,null,null,null,null,12,"CM4100",null,1,null,"A0072823"]
[null,null,null,null,null,null,null,null,null,null,null,"2*CS4100",null,2,null,"A0072824"]
[null,null,null,null,null,null,null,null,null,null,16,"CM4100",null,1,null,"A0072823"]
[null,null,null,null,null,null,null,null,null,null,null,"3*CS4100",null,3,null,"A0072824"]
[null,null,null,null,null,null,null,null,null,null,20,"CM4100",null,1,null,"A0072823"]
[null,null,null,null,null,null,null,null,null,null,null,"4*CS4100",null,4,null,"A0072824"]
[null,null,null,null,null,null,null,null,null,null,24,"CM4100",null,1,null,"A0072823"]
[null,null,null,null,null,null,null,null,null,null,null,"5*CS4100",null,5,null,"A0072824"]
[null,null,null,null,null,null,null,null,null,null,28,"CM4100",null,1,null,"A0072823"]
[null,null,null,null,null,null,null,null,null,null,null,"6*CS4100",null,6,null,"A0072824"]
[]
[null,null,"AC1-3.7-E",null,"A0073146",null,"CT meetklem",null,"LAN",null,8,"CM4100",null,1,null,"A0072823"]
[null,null,null,null,null,null,"WIFI",null,"A0070788",null,null,"1*CS4100",null,1,null,"A0072824"]
[null,null,null,null,null,null,null,null,null,null,12,"CM4100",null,1,null,"A0072823"]
[null,null,null,null,null,null,null,null,null,null,null,"2*CS4100",null,2,null,"A0072824"]
[null,null,null,null,null,null,null,null,null,null,16,"CM4100",null,1,null,"A0072823"]
[null,null,null,null,null,null,null,null,null,null,null,"3*CS4100",null,3,null,"A0072824"]
[null,null,null,null,null,null,null,null,null,null,20,"CM4100",null,1,null,"A0072823"]
[null,null,null,null,null,null,null,null,null,null,null,"4*CS4100",null,4,null,"A0072824"]
[null,null,null,null,null,null,null,null,null,null,24,"CM4100",null,1,null,"A0072823"]
[null,null,null,null,null,null,null,null,null,null,null,"5*CS4100",null,5,null,"A0072824"]
[null,null,null,null,null,null,null,null,null,null,28,"CM4100",null,1,null,"A0072823"]
[null,null,null,null,null,null,null,null,null,null,null,"6*CS4100",null,6,null,"A0072824"]
[]
[null,null,"AC1-4.6-E1",null,"A0075256",null,"CT meetklem",null,"LAN",null,8,"CM4100",null,1,null,"A0072823"]
[null,null,null,null,null,null,"WIFI",null,"A0070788",null,null,"1*CS4100",null,1,null,"A0072824"]
[null,null,null,null,null,null,null,null,null,null,12,"CM4100",null,1,null,"A0072823"]
[null,null,null,null,null,null,null,null,null,null,null,"2*CS4100",null,2,null,"A0072824"]
[null,null,null,null,null,null,null,null,null,null,16,"CM4100",null,1,null,"A0072823"]
[null,null,null,null,null,null,null,null,null,null,null,"3*CS4100",null,3,null,"A0072824"]
[null,null,null,null,null,null,null,null,null,null,20,"CM4100",null,1,null,"A0072823"]
[null,null,null,null,null,null,null,null,null,null,null,"4*CS4100",null,4,null,"A0072824"]
[null,null,null,null,null,null,null,null,null,null,24,"CM4100",null,1,null,"A0072823"]
[null,null,null,null,null,null,null,null,null,null,null,"5*CS4100",null,5,null,"A0072824"]
[null,null,null,null,null,null,null,null,null,null,28,"CM4100",null,1,null,"A0072823"]
[null,null,null,null,null,null,null,null,null,null,null,"6*CS4100",null,6,null,"A0072824"]
[]
[null,null,"AC1-5.0-E1",null,"A0075257",null,"CT meetklem",null,"LAN",null,8,"CM4100",null,1,null,"A0072823"]
[null,null,null,null,null,null,"WIFI",null,"A0070788",null,null,"1*CS4100",null,1,null,"A0072824"]
[null,null,null,null,null,null,null,null,null,null,12,"CM4100",null,1,null,"A0072823"]
[null,null,null,null,null,null,null,null,null,null,null,"2*CS4100",null,2,null,"A0072824"]
[null,null,null,null,null,null,null,null,null,null,16,"CM4100",null,1,null,"A0072823"]
[null,null,null,null,null,null,null,null,null,null,null,"3*CS4100",null,3,null,"A0072824"]
[null,null,null,null,null,null,null,null,null,null,20,"CM4100",null,1,null,"A0072823"]
[null,null,null,null,null,null,null,null,null,null,null,"4*CS4100",null,4,null,"A0072824"]
[null,null,null,null,null,null,null,null,null,null,24,"CM4100",null,1,null,"A0072823"]
[null,null,null,null,null,null,null,null,null,null,null,"5*CS4100",null,5,null,"A0072824"]
[null,null,null,null,null,null,null,null,null,null,28,"CM4100",null,1,null,"A0072823"]
[null,null,null,null,null,null,null,null,null,null,null,"6*CS4100",null,6,null,"A0072824"]

{"sheet":"retro1AIO","index":18,"n_rows":36,"n_cols":16,"rows_kept":36,"cut":false,"hidden":false,"merged":[]}
[]
[null,null,"Retrofit/mono fase/batterijen"]
[]
[]
[]
[]
[]
[]
[]
[]
[]
[]
[]
[]
[]
[]
[]
[]
[null,null,"All-in One",null,null,"Artikel nr",null,"Incl",null,"optie",null,"kWh","Batterijen",null,"Aantal","Artikel"]
[]
[]
[null,null,"AIO-AC1-3.0",null,null,"A0073028",null,"WIFI 2.0",null,"LAN",null,5.2,"2*HV2600",null,2,"A0070783"]
[null,null,null,null,null,null,null,"CT meetklem",null,"A0070788",null,7.8,"3*HV2600",null,3,"A0070783"]
[null,null,null,null,null,null,null,null,null,null,null,10.4,"4*HV2600",null,4,"A0070783"]
[]
[null,null,"AIO-AC1-3.7",null,null,"A0073029",null,"WIFI 2.0",null,"LAN",null,5.2,"2*HV2600",null,2,"A0070783"]
[null,null,null,null,null,null,null,"CT meetklem",null,"A0070788",null,7.8,"3*HV2600",null,3,"A0070783"]
[null,null,null,null,null,null,null,null,null,null,null,10.4,"4*HV2600",null,4,"A0070783"]
[]
[null,null,"AIO-AC1-4.6E",null,null,"A0073030",null,"WIFI 2.0",null,"LAN",null,5.2,"2*HV2600",null,2,"A0070783"]
[null,null,null,null,null,null,null,"CT meetklem",null,"A0070788",null,7.8,"3*HV2600",null,3,"A0070783"]
[null,null,null,null,null,null,null,null,null,null,null,10.4,"4*HV2600",null,4,"A0070783"]
[]
[null,null,"AIO-AC1-5.0E",null,null,"A0073031",null,"WIFI 2.0",null,"LAN",null,5.2,"2*HV2600",null,2,"A0070783"]
[null,null,null,null,null,null,null,"CT meetklem",null,"A0070788",null,7.8,"3*HV2600",null,3,"A0070783"]
[null,null,null,null,null,null,null,null,null,null,null,10.4,"4*HV2600",null,4,"A0070783"]